fUST/lending_fUST_20250713
["ID","MTS","AMOUNT","RATE_DAILY","PERIOD"]
[371700861,1752394254760,-460.0,0.00017534,2]
[371700862,1752394254769,-1012.86,0.00017534,2]
[371700863,1752394254779,-489.01,0.00017534,2]
[371700864,1752394254789,-460.0,0.00017534,2]
[371700865,1752394254799,-359.11428752,0.00017534,2]
[371700866,1752394254809,-4310.84,0.00017534,2]
[371700867,1752394254896,-460.0,0.00017534,2]
[371700868,1752394254907,-533.54,0.00017534,2]
[371700869,1752394254916,-2800.25,0.00017534,2]
[371700870,1752394254926,-862.57,0.00017534,2]
[371700871,1752394254936,-1059.69,0.00017534,2]
[371700872,1752394254946,-460.0,0.00017534,2]
[371700873,1752394254955,-460.0,0.00017534,2]
[371700874,1752394254965,-684.2,0.00017534,2]
[371700875,1752394254975,-479.16,0.00017534,2]
[371700876,1752394254984,-460.0,0.00017534,2]
[371700877,1752394254994,-5816.14,0.00017534,2]
[371700878,1752394255003,-324.29911778,0.00017534,2]
[371700879,1752394255013,-460.0,0.00017534,2]
[371700880,1752394255022,-1513.32,0.00017534,2]
[371700881,1752394255032,-460.0,0.00017534,2]
[371700882,1752394255041,-478.37757652,0.00017534,2]
[371700883,1752394255050,-1859.64,0.00017534,2]
[371700884,1752394255060,-3577.76,0.00017534,2]
[371700885,1752394255072,-460.0,0.00017534,2]
[371700886,1752394255082,-460.0,0.00017534,2]
[371700887,1752394255091,-897.76,0.00017534,2]
[371700888,1752394255101,-460.0,0.00017534,2]
[371700889,1752394255111,-460.0,0.00017534,2]
[371700890,1752394255121,-1406.11,0.00017534,2]
[371700891,1752394255130,-460.0,0.00017534,2]
[371700892,1752394255139,-505.01,0.00017534,2]
[371700893,1752394255150,-460.0,0.00017534,2]
[371700894,1752394255159,-361.272905,0.00017546,2]
[371700895,1752394255169,-1505.97841678,0.00017568,2]
[371700896,1752394255178,-1000.0,0.00017568,2]
[371700897,1752394255188,-151.0,0.000176,2]
[371700898,1752394255197,-501.90348705,0.00017618,2]
[371700899,1752394255207,-361.272905,0.00017627,2]
[371700900,1752394255219,-769.91049677,0.00017641,2]
[371700901,1752394255228,-361.272905,0.00017708,2]
[371700902,1752394255238,-1800.0,0.00017776,2]
[371700903,1752394255247,-361.272905,0.00017788,2]
[371700904,1752394255256,-500.0,0.00017808,2]
[371700905,1752394255266,-460.0,0.00017808,2]
[371700906,1752394255275,-460.0,0.00017808,2]
[371700907,1752394255284,-460.0,0.00017808,2]
[371700908,1752394255294,-460.0,0.00017808,2]
[371700909,1752394255304,-460.0,0.00017808,2]
[371700910,1752394255313,-460.0,0.00017808,2]
[371700911,1752394255323,-460.0,0.00017808,2]
[371700912,1752394255332,-460.0,0.00017808,2]
[371700913,1752394255341,-460.0,0.00017808,2]
[371700914,1752394255350,-460.0,0.00017808,2]
[371700915,1752394255360,-460.0,0.00017808,2]
[371700916,1752394255369,-460.0,0.00017808,2]
[371700917,1752394255378,-460.0,0.00017808,2]
[371700918,1752394255387,-460.0,0.00017808,2]
[371700919,1752394255397,-618.68,0.00017808,2]
[371700920,1752394255406,-1000.01,0.00017808,2]
[371700921,1752394255415,-460.0,0.00017808,2]
[371700922,1752394255424,-460.0,0.00017808,2]
[371700923,1752394255434,-460.0,0.00017808,2]
[371700924,1752394255443,-460.0,0.00017808,2]
[371700925,1752394255452,-151.0,0.00017808,2]
[371700926,1752394255462,-460.0,0.00017808,2]
[371700927,1752394255471,-460.0,0.00017808,2]
[371700928,1752394255480,-460.0,0.00017808,2]
[371700929,1752394255489,-715.71,0.00017808,2]
[371700930,1752394255499,-465.477809,0.00017808,2]
[371700931,1752394255508,-460.0,0.00017808,2]
[371700932,1752394255517,-447.17659175,0.00017808,2]
[371700933,1752394255526,-460.0,0.00017808,2]
[371700934,1752394255536,-330.68003145,0.00017808,2]
[371700935,1752394255545,-460.0,0.00017808,2]
[371700936,1752394255554,-460.0,0.00017808,2]
[371700937,1752394255563,-460.0,0.00017808,2]
[371700938,1752394255573,-460.0,0.00017808,2]
[371700939,1752394255582,-460.0,0.00017808,2]
[371700940,1752394255592,-460.0,0.00017808,2]
[371700941,1752394255601,-460.0,0.00017808,2]
[371700942,1752394255615,-460.0,0.00017808,2]
[371700943,1752394255624,-460.0,0.00017808,2]
[371700944,1752394255633,-504.95,0.00017808,2]
[371700945,1752394255643,-483.91,0.00017808,2]
[371700946,1752394255652,-460.0,0.00017808,2]
[371700947,1752394255661,-460.0,0.00017808,2]
[371700948,1752394255670,-460.0,0.00017808,2]
[371700949,1752394255679,-460.0,0.00017808,2]
[371700950,1752394255689,-460.0,0.00017808,2]
[371700951,1752394255698,-460.0,0.00017808,2]
[371700952,1752394255708,-460.0,0.00017808,2]
[371700953,1752394255717,-460.0,0.00017808,2]
[371700954,1752394255726,-465.09424804,0.00017808,2]
[371700955,1752394255735,-812.41,0.00017808,2]
[371700956,1752394255745,-460.0,0.00017808,2]
[371700957,1752394255754,-460.0,0.00017808,2]
[371700958,1752394255763,-151.0,0.00017808,2]
[371700959,1752394255772,-460.0,0.00017808,2]
[371700960,1752394255782,-192.40003544,0.00017808,2]
[371700961,1752394255791,-460.0,0.00017808,2]
[371700962,1752394255801,-460.0,0.00017808,2]
[371700963,1752394255811,-151.0,0.00017808,2]
[371700964,1752394255822,-460.0,0.00017808,2]
[371700965,1752394255831,-1679.05,0.00017808,2]
[371700966,1752394255841,-733.36,0.00017808,2]
[371700967,1752394255850,-479.16,0.00017808,2]
[371700968,1752394255860,-584.3,0.00017808,2]
[371700969,1752394255869,-151.0,0.00017808,2]
[371700970,1752394255879,-460.0,0.00017808,2]
[371700971,1752394255888,-460.0,0.00017808,2]
[371700972,1752394255898,-429.14,0.00017808,2]
[371700973,1752394255908,-460.0,0.00017808,2]
[371700974,1752394255917,-506.57,0.00017808,2]
[371700975,1752394255926,-893.03,0.00017808,2]
[371700976,1752394255939,-460.0,0.00017808,2]
[371700977,1752394255948,-460.0,0.00017808,2]
[371700978,1752394255958,-695.2,0.00017808,2]
[371700979,1752394255968,-460.0,0.00017808,2]
[371700980,1752394255978,-460.0,0.00017808,2]
[371700981,1752394255988,-693.44,0.00017808,2]
[371700982,1752394255997,-460.0,0.00017808,2]
[371700983,1752394256008,-2792.31,0.00017808,2]
[371700984,1752394256017,-460.0,0.00017808,2]
[371700985,1752394256028,-460.0,0.00017808,2]
[371700986,1752394256037,-923.89,0.00017808,2]
[371700987,1752394256048,-844.75,0.00017808,2]
[371700988,1752394256058,-460.0,0.00017808,2]
[371700989,1752394256144,-699.1,0.00017808,2]
[371700990,1752394256155,-460.0,0.00017808,2]
[371700991,1752394256165,-514.93,0.00017808,2]
[371700992,1752394256174,-460.0,0.00017808,2]
[371700993,1752394256185,-460.0,0.00017808,2]
[371700994,1752394256194,-460.0,0.00017808,2]
[371700995,1752394256204,-518.68,0.00017808,2]
[371700996,1752394256213,-2437.23,0.00017808,2]
[371700997,1752394256223,-705.01,0.00017808,2]
[371700998,1752394256234,-151.0,0.00017808,2]
[371700999,1752394256244,-460.0,0.00017808,2]
[371701000,1752394256254,-901.04,0.00017808,2]
[371701001,1752394256264,-460.0,0.00017808,2]
[371701002,1752394256274,-460.0,0.00017808,2]
[371701003,1752394256284,-1505.6,0.00017808,2]
[371701004,1752394256295,-151.0,0.00017808,2]
[371701005,1752394256304,-460.0,0.00017808,2]
[371701006,1752394256314,-2603.03,0.00017808,2]
[371701007,1752394256327,-460.0,0.00017808,2]
[371701008,1752394256337,-230.315139,0.00017808,2]
[371701009,1752394256347,-6291.67,0.00017808,2]
[371701010,1752394256356,-460.0,0.00017808,2]
[371701011,1752394256366,-5734.9,0.00017808,2]
[371701012,1752394256375,-460.0,0.00017808,2]
[371701013,1752394256385,-1770.54,0.00017808,2]
[371701014,1752394256394,-460.0,0.00017808,2]
[371701015,1752394256405,-575.3,0.00017808,2]
[371701016,1752394256414,-460.0,0.00017808,2]
[371701017,1752394256423,-460.0,0.00017808,2]
[371701018,1752394256433,-460.0,0.00017808,2]
[371701019,1752394256445,-460.0,0.00017808,2]
[371701020,1752394256455,-460.0,0.00017808,2]
[371701021,1752394256464,-460.0,0.00017808,2]
[371701022,1752394256474,-1012.86,0.00017808,2]
[371701023,1752394256484,-489.01,0.00017808,2]
[371701024,1752394256493,-460.0,0.00017808,2]
[371701025,1752394256503,-4310.84,0.00017808,2]
[371701026,1752394256512,-578.14920015,0.00017808,2]
[371701027,1752394256522,-533.54,0.00017808,2]
[371701028,1752394256532,-2800.25,0.00017808,2]
[371701029,1752394256541,-288.453627,0.00017808,2]
[371701030,1752394256552,-862.57,0.00017808,2]
[371701031,1752394256562,-1059.69,0.00017808,2]
[371701032,1752394256574,-288.453627,0.00017808,2]
[371701033,1752394256584,-460.0,0.00017808,2]
[371701034,1752394256594,-460.0,0.00017808,2]
[371701035,1752394256603,-684.2,0.00017808,2]
[371701036,1752394256613,-479.16,0.00017808,2]
[371701037,1752394256623,-5816.14,0.00017808,2]
[371701038,1752394256633,-460.0,0.00017808,2]
[371701039,1752394256642,-1513.32,0.00017808,2]
[371701040,1752394256651,-1859.64,0.00017808,2]
[371701041,1752394256661,-3577.76,0.00017808,2]
[371701042,1752394256670,-460.0,0.00017808,2]
[371701043,1752394256682,-460.0,0.00017808,2]
[371701044,1752394256694,-897.76,0.00017808,2]
[371701045,1752394256716,-460.0,0.00017808,2]
[371701046,1752394256733,-1406.11,0.00017808,2]
[371701047,1752394256753,-460.0,0.00017808,2]
[371701048,1752394256772,-505.01,0.00017808,2]
[371701049,1752394256791,-460.0,0.00017808,2]
[371701050,1752394256808,-10757.49686302,0.00017831,2]
[371701051,1752394256826,-420.0,0.00017845,2]
[371701052,1752394256840,-1000.0,0.00017868,2]
[371701053,1752394256856,-1500.0,0.00017868,2]
[371701054,1752394256874,-1000.0,0.00017868,2]
[371701055,1752394256895,-1500.0,0.00017868,2]
[371701056,1752394256907,-1500.0,0.00017868,2]
[371701057,1752394256925,-361.272905,0.00017869,2]
[371701058,1752394256941,-670.6694919,0.0001789,2]
[371701059,1752394256957,-769.91049677,0.00017894,2]
[371701060,1752394256970,-151.0,0.000179,2]
[371701061,1752394256986,-779.0,0.00017945,2]
[371701062,1752394257000,-361.272905,0.0001795,2]
[371701063,1752394257015,-361.272905,0.00018031,2]
[371701064,1752394257029,-215.82760826,0.00018081,2]
[371701065,1752394257042,-500.0,0.00018082,2]
[371701066,1752394257056,-189.5718892,0.00018082,2]
[371701067,1752394257073,-320.66908014,0.00018082,2]
[371701068,1752394257088,-223.06,0.00018082,2]
[371701069,1752394257102,-460.0,0.00018082,2]
[371701070,1752394257117,-576.54597633,0.00018082,2]
[371701071,1752394257131,-460.0,0.00018082,2]
[371701072,1752394257145,-229.26,0.00018082,2]
[371701073,1752394257160,-543.28,0.00018082,2]
[371701074,1752394257173,-460.0,0.00018082,2]
[371701075,1752394257187,-474.28452548,0.00018082,2]
[371701076,1752394257201,-460.0,0.00018082,2]
[371701077,1752394257215,-618.68,0.00018082,2]
[371701078,1752394257230,-1000.01,0.00018082,2]
[371701079,1752394257244,-460.0,0.00018082,2]
[371701080,1752394257260,-460.0,0.00018082,2]
[371701081,1752394257274,-460.0,0.00018082,2]
[371701082,1752394257290,-460.0,0.00018082,2]
[371701083,1752394257305,-460.0,0.00018082,2]
[371701084,1752394257322,-460.0,0.00018082,2]
[371701085,1752394257337,-460.0,0.00018082,2]
[371701086,1752394257351,-715.71,0.00018082,2]
[371701087,1752394257365,-460.0,0.00018082,2]
[371701088,1752394257379,-460.0,0.00018082,2]
[371701089,1752394257394,-255.07877617,0.00018082,2]
[371701090,1752394257410,-484.83126635,0.00018082,2]
[371701091,1752394257426,-460.0,0.00018082,2]
[371701092,1752394257441,-460.0,0.00018082,2]
[371701093,1752394257457,-460.0,0.00018082,2]
[371701094,1752394257473,-460.0,0.00018082,2]
[371701095,1752394257491,-460.0,0.00018082,2]
[371701096,1752394257502,-460.0,0.00018082,2]
[371701097,1752394257513,-460.0,0.00018082,2]
[371701098,1752394257523,-504.95,0.00018082,2]
[371701099,1752394257534,-483.91,0.00018082,2]
[371701100,1752394257545,-460.0,0.00018082,2]
[371701101,1752394257695,-460.0,0.00018082,2]
[371701102,1752394257707,-460.0,0.00018082,2]
[371701103,1752394257718,-460.0,0.00018082,2]
[371701104,1752394257729,-460.0,0.00018082,2]
[371701105,1752394257742,-460.0,0.00018082,2]
[371701106,1752394257754,-812.41,0.00018082,2]
[371701107,1752394257764,-460.0,0.00018082,2]
[371701108,1752394257774,-460.0,0.00018082,2]
[371701109,1752394257783,-460.0,0.00018082,2]
[371701110,1752394257793,-460.0,0.00018082,2]
[371701111,1752394257802,-460.0,0.00018082,2]
[371701112,1752394257811,-460.0,0.00018082,2]
[371701113,1752394257823,-1679.05,0.00018082,2]
[371701114,1752394257832,-733.36,0.00018082,2]
[371701115,1752394257842,-479.16,0.00018082,2]
[371701116,1752394257852,-584.3,0.00018082,2]
[371701117,1752394257862,-460.0,0.00018082,2]
[371701118,1752394257872,-460.0,0.00018082,2]
[371701119,1752394257882,-460.0,0.00018082,2]
[371701120,1752394257893,-506.57,0.00018082,2]
[371701121,1752394257902,-893.03,0.00018082,2]
[371701122,1752394257912,-460.0,0.00018082,2]
[371701123,1752394257922,-695.2,0.00018082,2]
[371701124,1752394257932,-460.0,0.00018082,2]
[371701125,1752394257942,-460.0,0.00018082,2]
[371701126,1752394257953,-693.44,0.00018082,2]
[371701127,1752394257962,-151.33233934,0.00018082,2]
[371701128,1752394257973,-2792.31,0.00018082,2]
[371701129,1752394257983,-460.0,0.00018082,2]
[371701130,1752394257992,-460.0,0.00018082,2]
[371701131,1752394258002,-923.89,0.00018082,2]
[371701132,1752394258012,-844.75,0.00018082,2]
[371701133,1752394258022,-460.0,0.00018082,2]
[371701134,1752394258031,-699.1,0.00018082,2]
[371701135,1752394258041,-499.84241935,0.00018082,2]
[371701136,1752394258052,-514.93,0.00018082,2]
[371701137,1752394258062,-460.0,0.00018082,2]
[371701138,1752394258076,-460.0,0.00018082,2]
[371701139,1752394258086,-460.0,0.00018082,2]
[371701140,1752394258096,-518.68,0.00018082,2]
[371701141,1752394258106,-2437.23,0.00018082,2]
[371701142,1752394258117,-705.01,0.00018082,2]
[371701143,1752394258127,-460.0,0.00018082,2]
[371701144,1752394258137,-901.04,0.00018082,2]
[371701145,1752394258148,-460.0,0.00018082,2]
[371701146,1752394258158,-460.0,0.00018082,2]
[371701147,1752394258168,-1505.6,0.00018082,2]
[371701148,1752394258178,-460.0,0.00018082,2]
[371701149,1752394258188,-2603.03,0.00018082,2]
[371701150,1752394258198,-460.0,0.00018082,2]
[371701151,1752394258208,-6291.67,0.00018082,2]
[371701152,1752394258218,-460.0,0.00018082,2]
[371701153,1752394258227,-5734.9,0.00018082,2]
[371701154,1752394258236,-1770.54,0.00018082,2]
[371701155,1752394258246,-460.0,0.00018082,2]
[371701156,1752394258255,-460.0,0.00018082,2]
[371701157,1752394258265,-460.0,0.00018082,2]
[371701158,1752394258275,-460.0,0.00018082,2]
[371701159,1752394258286,-460.0,0.00018082,2]
[371701160,1752394258295,-460.0,0.00018082,2]
[371701161,1752394258305,-1012.86,0.00018082,2]
[371701162,1752394258315,-489.01,0.00018082,2]
[371701163,1752394258326,-460.0,0.00018082,2]
[371701164,1752394258336,-4310.84,0.00018082,2]
[371701165,1752394258346,-533.54,0.00018082,2]
[371701166,1752394258355,-2800.25,0.00018082,2]
[371701167,1752394258366,-862.57,0.00018082,2]
[371701168,1752394258377,-1059.69,0.00018082,2]
[371701169,1752394258386,-460.0,0.00018082,2]
[371701170,1752394258397,-460.0,0.00018082,2]
[371701171,1752394258406,-684.2,0.00018082,2]
[371701172,1752394258416,-479.16,0.00018082,2]
[371701173,1752394258425,-5816.14,0.00018082,2]
[371701174,1752394258435,-460.0,0.00018082,2]
[371701175,1752394258446,-1513.32,0.00018082,2]
[371701176,1752394258457,-1859.64,0.00018082,2]
[371701177,1752394258467,-3577.76,0.00018082,2]
[371701178,1752394258478,-460.0,0.00018082,2]
[371701179,1752394258488,-460.0,0.00018082,2]
[371701180,1752394258499,-897.76,0.00018082,2]
[371701181,1752394258509,-460.0,0.00018082,2]
[371701182,1752394258519,-1406.11,0.00018082,2]
[371701183,1752394258530,-460.0,0.00018082,2]
[371701184,1752394258540,-505.01,0.00018082,2]
[371701185,1752394258550,-460.0,0.00018082,2]
[371701186,1752394258560,-857.8994072,0.00018082,2]
[371701187,1752394258571,-3773.1446253,0.00018082,2]
[371701188,1752394258580,-361.272905,0.00018112,2]
[371701189,1752394258590,-502.38848101,0.00018124,2]
[371701190,1752394258600,-504.44819473,0.00018124,2]
[371701191,1752394258611,-502.34576079,0.00018124,2]
[371701192,1752394258621,-500.0,0.00018124,2]
[371701193,1752394258631,-500.0,0.00018124,2]
[371701194,1752394258641,-502.56283563,0.00018124,2]
[371701195,1752394258651,-500.0,0.00018124,2]
[371701196,1752394258662,-500.0,0.00018124,2]
[371701197,1752394258673,-500.0,0.00018124,2]
[371701198,1752394258683,-500.0,0.00018124,2]
[371701199,1752394258693,-153.61317861,0.00018124,2]
[371701200,1752394258703,-500.0,0.00018124,2]
[371701201,1752394258713,-500.0,0.00018124,2]
[371701202,1752394258722,-500.0,0.00018124,2]
[371701203,1752394258732,-500.0,0.00018124,2]
[371701204,1752394258742,-500.0,0.00018124,2]
[371701205,1752394258752,-502.88020703,0.00018124,2]
[371701206,1752394258763,-505.26395699,0.00018124,2]
[371701207,1752394258772,-500.0,0.00018124,2]
[371701208,1752394258781,-503.40431034,0.00018124,2]
[371701209,1752394258790,-500.0,0.00018124,2]
[371701210,1752394258799,-500.0,0.00018124,2]
[371701211,1752394258810,-500.0,0.00018124,2]
[371701212,1752394258821,-501.24774042,0.00018124,2]
[371701213,1752394258830,-500.0,0.00018124,2]
[371701214,1752394258840,-152.70445104,0.00018124,2]
[371701215,1752394258849,-500.0,0.00018124,2]
[371701216,1752394258859,-288.453627,0.00018141,2]
[371701217,1752394258870,-288.453627,0.00018141,2]
[371701218,1752394258881,-10757.49686302,0.00018141,2]
[371701219,1752394258892,-361.272905,0.00018193,2]
[371701220,1752394258903,-151.0,0.000182,2]
[371701221,1752394258912,-769.91049677,0.00018232,2]
[371701222,1752394258922,-361.272905,0.00018274,2]
[371701223,1752394258933,-361.272905,0.00018354,2]
[371701224,1752394258943,-500.0,0.00018356,2]
[371701225,1752394258954,-460.0,0.00018356,2]
[371701226,1752394258963,-460.0,0.00018356,2]
[371701227,1752394258973,-460.0,0.00018356,2]
[371701228,1752394258982,-460.0,0.00018356,2]
[371701229,1752394258992,-618.68,0.00018356,2]
[371701230,1752394259001,-1000.01,0.00018356,2]
[371701231,1752394259010,-460.0,0.00018356,2]
[371701232,1752394259020,-460.0,0.00018356,2]
[371701233,1752394259029,-249.42105203,0.00018356,2]
[371701234,1752394259040,-460.0,0.00018356,2]
[371701235,1752394259049,-151.0,0.00018356,2]
[371701236,1752394259058,-460.0,0.00018356,2]
[371701237,1752394259071,-460.0,0.00018356,2]
[371701238,1752394259080,-460.0,0.00018356,2]
[371701239,1752394259089,-715.71,0.00018356,2]
[371701240,1752394259099,-460.0,0.00018356,2]
[371701241,1752394259108,-460.0,0.00018356,2]
[371701242,1752394259118,-460.0,0.00018356,2]
[371701243,1752394259128,-460.0,0.00018356,2]
[371701244,1752394259137,-460.0,0.00018356,2]
[371701245,1752394259149,-460.0,0.00018356,2]
[371701246,1752394259159,-460.0,0.00018356,2]
[371701247,1752394259168,-460.0,0.00018356,2]
[371701248,1752394259177,-460.0,0.00018356,2]
[371701249,1752394259187,-504.95,0.00018356,2]
[371701250,1752394259196,-483.91,0.00018356,2]
[371701251,1752394259205,-460.0,0.00018356,2]
[371701252,1752394259215,-460.0,0.00018356,2]
[371701253,1752394259224,-460.0,0.00018356,2]
[371701254,1752394259234,-460.0,0.00018356,2]
[371701255,1752394259244,-460.0,0.00018356,2]
[371701256,1752394259254,-460.0,0.00018356,2]
[371701257,1752394259264,-812.41,0.00018356,2]
[371701258,1752394259274,-572.7,0.00018356,2]
[371701259,1752394259285,-460.0,0.00018356,2]
[371701260,1752394259295,-151.0,0.00018356,2]
[371701261,1752394259305,-460.0,0.00018356,2]
[371701262,1752394259316,-460.0,0.00018356,2]
[371701263,1752394259327,-460.0,0.00018356,2]
[371701264,1752394259336,-151.0,0.00018356,2]
[371701265,1752394259346,-460.0,0.00018356,2]
[371701266,1752394259356,-1679.05,0.00018356,2]
[371701267,1752394259368,-733.36,0.00018356,2]
[371701268,1752394259379,-479.16,0.00018356,2]
[371701269,1752394259389,-584.3,0.00018356,2]
[371701270,1752394259401,-209.232453,0.00018356,2]
[371701271,1752394259411,-460.0,0.00018356,2]
[371701272,1752394259423,-495.78,0.00018356,2]
[371701273,1752394259434,-506.57,0.00018356,2]
[371701274,1752394259444,-893.03,0.00018356,2]
[371701275,1752394259455,-460.0,0.00018356,2]
[371701276,1752394259465,-695.2,0.00018356,2]
[371701277,1752394259476,-460.0,0.00018356,2]
[371701278,1752394259486,-460.0,0.00018356,2]
[371701279,1752394259497,-693.44,0.00018356,2]
[371701280,1752394259507,-2792.31,0.00018356,2]
[371701281,1752394259517,-460.0,0.00018356,2]
[371701282,1752394259529,-460.0,0.00018356,2]
[371701283,1752394259541,-923.89,0.00018356,2]
[371701284,1752394259551,-844.75,0.00018356,2]
[371701285,1752394259561,-460.0,0.00018356,2]
[371701286,1752394259571,-699.1,0.00018356,2]
[371701287,1752394259581,-514.93,0.00018356,2]
[371701288,1752394259590,-460.0,0.00018356,2]
[371701289,1752394259600,-460.0,0.00018356,2]
[371701290,1752394259611,-518.68,0.00018356,2]
[371701291,1752394259621,-460.0,0.00018356,2]
[371701292,1752394259632,-2437.23,0.00018356,2]
[371701293,1752394259642,-705.01,0.00018356,2]
[371701294,1752394259653,-151.0,0.00018356,2]
[371701295,1752394259663,-460.0,0.00018356,2]
[371701296,1752394259673,-901.04,0.00018356,2]
[371701297,1752394259682,-460.0,0.00018356,2]
[371701298,1752394259692,-1505.6,0.00018356,2]
[371701299,1752394259703,-151.0,0.00018356,2]
[371701300,1752394259714,-460.0,0.00018356,2]
[371701301,1752394259725,-2603.03,0.00018356,2]
[371701302,1752394259827,-460.0,0.00018356,2]
[371701303,1752394259840,-6291.67,0.00018356,2]
[371701304,1752394259850,-460.0,0.00018356,2]
[371701305,1752394259860,-5734.9,0.00018356,2]
[371701306,1752394259869,-1770.54,0.00018356,2]
[371701307,1752394259879,-460.0,0.00018356,2]
[371701308,1752394259888,-460.0,0.00018356,2]
[371701309,1752394259898,-460.0,0.00018356,2]
[371701310,1752394259907,-460.0,0.00018356,2]
[371701311,1752394259916,-460.0,0.00018356,2]
[371701312,1752394259926,-460.0,0.00018356,2]
[371701313,1752394259935,-1012.86,0.00018356,2]
[371701314,1752394259945,-489.01,0.00018356,2]
[371701315,1752394259955,-460.0,0.00018356,2]
[371701316,1752394259967,-4310.84,0.00018356,2]
[371701317,1752394259977,-533.54,0.00018356,2]
[371701318,1752394259988,-2800.25,0.00018356,2]
[371701319,1752394259999,-862.57,0.00018356,2]
[371701320,1752394260009,-1059.69,0.00018356,2]
[371701321,1752394260019,-460.0,0.00018356,2]
[371701322,1752394260028,-684.2,0.00018356,2]
[371701323,1752394260038,-479.16,0.00018356,2]
[371701324,1752394260048,-5816.14,0.00018356,2]
[371701325,1752394260058,-483.94,0.00018356,2]
[371701326,1752394260072,-1513.32,0.00018356,2]
[371701327,1752394260083,-1859.64,0.00018356,2]
[371701328,1752394260092,-3577.76,0.00018356,2]
[371701329,1752394260102,-460.0,0.00018356,2]
[371701330,1752394260112,-460.0,0.00018356,2]
[371701331,1752394260121,-897.76,0.00018356,2]
[371701332,1752394260131,-460.0,0.00018356,2]
[371701333,1752394260141,-1406.11,0.00018356,2]
[371701334,1752394260151,-467.89,0.00018356,2]
[371701335,1752394260161,-460.0,0.00018356,2]
[371701336,1752394260170,-505.01,0.00018356,2]
[371701337,1752394260180,-501.89293347,0.00018406,2]
[371701338,1752394260189,-500.0,0.00018406,2]
[371701339,1752394260199,-2000.0,0.00018416,2]
[371701340,1752394260209,-2008.90043189,0.00018416,2]
[371701341,1752394260218,-2000.0,0.00018416,2]
[371701342,1752394260227,-361.272905,0.00018435,2]
[371701343,1752394260237,-10757.49686302,0.00018452,2]
[371701344,1752394260246,-151.0,0.000185,2]
[371701345,1752394260257,-207.4,0.00018561,2]
[371701346,1752394260267,-6912.642,0.00018561,2]
[371701347,1752394260277,-25000.0,0.00018561,2]
[371701348,1752394260286,-151.0,0.00018561,2]
[371701349,1752394260296,-500.0,0.00018561,2]
[371701350,1752394260305,-12708.53966551,0.00018561,2]
[371701351,1752394260315,-500.0,0.00018561,2]
[371701352,1752394260326,-500.0,0.00018561,2]
[371701353,1752394260336,-500.0,0.00018561,2]
[371701354,1752394260346,-500.0,0.00018561,2]
[371701355,1752394260356,-500.0,0.00018561,2]
[371701356,1752394260367,-500.0,0.00018561,2]
[371701357,1752394260379,-500.0,0.00018561,2]
[371701358,1752394260388,-500.0,0.00018561,2]
[371701359,1752394260398,-500.0,0.00018561,2]
[371701360,1752394260408,-500.0,0.00018561,2]